Cogmind - Beta 15 X1 @@@ ROGUE MODE // 2024.11.14 @ 19:16:51 Player: H3-RMN Result: Destroyed by WZ-SML(R) with Subdweller Laser Performance ------------- Evolutions (0) 0 Regions Visited (3) 600 Robots Destroyed (15) 75 Value Destroyed (395) 395 Prototype IDs (0) 0 Alien Tech Used (0) 0 Bonus (0) 0 TOTAL SCORE: 1070 Bonus ------- None Cogmind --------- Core Integrity 0/250 Matter 295/300 Energy 95/100 System Corruption 0% Temperature Cool (6) Movement Rolling (150) Ox4 Location -10/Subcaves Parts ------- > --- POWER (1) -------- (None) > --- PROPULSION (2) --- Subdweller Monowheel > --- UTILITY (2) ------ Huge Storage Unit Core Shielding > --- WEAPON (2) ------- Hammer > --- INVENTORY (25) --- Light Treads Light Treads Aluminum Leg Aluminum Leg Wheel Wheel Medium Storage Unit High-capacity Storage Unit Structural Scanner Transport Network Coupler Small Laser Subdweller Laser Beam Cannon Assault Rifle Assault Rifle Light Assault Rifle Light Assault Rifle Peak State ------------ > --- POWER ------------ Subdweller Power Source > --- PROPULSION ------- Light Treads Subdweller Monowheel > --- UTILITY ---------- Huge Storage Unit Core Shielding > --- WEAPON ----------- Assault Rifle Assault Rifle > --- INVENTORY -------- Light Treads Light Treads Aluminum Leg Aluminum Leg Wheel Wheel Medium Storage Unit High-capacity Storage Unit Structural Scanner Transport Network Coupler Small Laser Subdweller Laser Beam Cannon Assault Rifle Light Assault Rifle Light Assault Rifle Hammer [Rating: 10] Favorites ----------- Power Ion Engine Engine Ion Engine Propulsion Wheel Treads Light Treads Leg Aluminum Leg Wheel Wheel Utility Huge Storage Unit Device Structural Scanner Storage Huge Storage Unit Protection Core Shielding Weapon Assault Rifle Ballistic Gun Assault Rifle Impact Weapon Hammer Build | -11 -10 -10 -10 ------- Run | Yrd Mat Min Sub Slots Evolved . | . . . . Power . | . . . . Propulsion . | . . . . Utility . | . . . . Weapon . | . . . . Parts Attached 18 | 8 7 . 3 Power 3 | 1 1 . 1 Engine 3 | 1 1 . 1 Core . | . . . . Reactor . | . . . . Propulsion 5 | 3 1 . 1 Treads 1 | . 1 . . Leg 1 | 1 . . . Wheel 3 | 2 . . 1 Hover . | . . . . Flight . | . . . . Utility 5 | 2 3 . . Device 2 | 1 1 . . Storage 2 | 1 1 . . Processor . | . . . . Hackware . | . . . . Protection 1 | . 1 . . Artifact . | . . . . Weapon 5 | 2 2 . 1 Energy Gun . | . . . . Energy Cannon . | . . . . Ballistic Gun 4 | 2 2 . . Ballistic Cannon . | . . . . Launcher . | . . . . Special Weapon . | . . . . Impact Weapon 1 | . . . 1 Slashing Weapon . | . . . . Piercing Weapon . | . . . . Special Melee Weapon . | . . . . Unidentified Prototypes . | . . . . Parts Lost 6 | . 2 . 4 Power 3 | . 1 . 2 Propulsion 2 | . 1 . 1 Utility . | . . . . Weapon 1 | . . . 1 Highest Loss Streak 3 | . 2 . 3 To Critical Strikes . | . . . . Average Backups 10 | 3 7 11 15 Power . | . . . . Propulsion 4 | 2 3 3 5 Utility 2 | . 1 3 4 Weapon 4 | . 2 5 6 Tool/Special . | . . . . Unused Backups 11 | . . . 11 Power . | . . . . Propulsion 4 | . . . 4 Utility 3 | . . . 3 Weapon 4 | . . . 4 Tool/Special . | . . . . Average Slot Usage (%) 98 | . 98 100 96 Engine 13 | . 13 14 11 Treads 12 | . 11 14 13 Wheel 14 | . 15 14 14 Device 3 | . 7 . . Storage 14 | . 14 14 14 Protection 10 | . 6 14 14 Ballistic Gun 27 | . 28 28 25 Peak Build Rating 10 | 7 8 8 10 Average Rating 7 | 4 7 8 8 On Entrance 5 | . 7 8 8 Naked Turns . | . . . . Heaviest Build 90 | 11 90 90 90 Greatest Support 20 | 20 20 10 20 Greatest Overweight (x) 8 | . 8 8 8 Average Overweight (x) 6 | . 5 8 6 Largest Inventory Capacity 25 | 8 25 25 25 Average Capacity 23 | 6 23 25 25 Most Carried 17 | 5 11 15 17 Average Carried 10 | 3 7 11 15 Final Capacity 25 | 8 25 25 25 Final Carried 17 | 5 11 15 17 Class Distribution -------------------- 100% | Mutant Dominant Class ---------------- Mutant | -10/Materials Mutant | -10/Mines Mutant | -10/Subcaves Resources | -11 -10 -10 -10 ----------- Run | Yrd Mat Min Sub Matter Collected 625 | 294 195 77 59 Remotely . | . . . . Salvage Created 616 | 96 320 49 151 Parts 43 | 7 22 6 8 Haulers Intercepted 1 | . 1 . . Recyclers Shooed . | . . . . Parts Field Recycled . | . . . . Retrieved Matter . | . . . . Parts Self-Destructed . | . . . . Prevented . | . . . . Kills | -11 -10 -10 -10 ------- Run | Yrd Mat Min Sub Combat Hostiles Destroyed 12 | . 6 3 3 Melee 1 | . . . 1 Guns 11 | . 6 3 2 Classes Destroyed 6 | 2 2 1 1 Tunneler 1 | 1 . . . Hauler 1 | . 1 . . Recycler 1 | 1 . . . Swarmer 3 | . . 3 . Grunt 6 | . 6 . . Subdweller 3 | . . . 3 Best Kill Streak 3 | 2 3 3 2 Combat Bots Only 3 | . 2 3 2 Max Kills in Single Turn 2 | 1 1 2 1 Gunslinging . | . . . . Exploded . | . . . . Melee 1 | . . . 1 Uniques/NPCs Destroyed . | . . . . Combat | -11 -10 -10 -10 -------- Run | Yrd Mat Min Sub Hostile Shots Fired 74 | . 31 16 27 Missed 17 | . 7 3 7 Damage Taken 902 | . 376 98 428 Core 259 | . 118 22 119 Absorbed by Shields . | . . . . Redirected to Shielding 41 | . 11 4 26 Regen/Repaired (Parts) 43 | . 43 . . Core Remaining (%) 100 | 100 . . . Volleys Fired 60 | 7 35 9 9 Largest 2 | 2 2 2 2 Hottest 40 | 40 40 40 40 Shots Fired 120 | 14 70 18 18 Gun 120 | 14 70 18 18 Cannon . | . . . . Launcher . | . . . . Special . | . . . . Kinetic 120 | 14 70 18 18 Thermal . | . . . . Explosive . | . . . . Electromagnetic . | . . . . Robot Hit Streak 14 | 6 14 4 10 Robot Miss Streak 5 | 2 5 2 1 Penetration Max . | . . . . Secondary Targets 2 | . 1 . 1 Max Gunslinging Chain 1 | . 1 . 1 Shots Hit Robots 85 | 8 46 11 20 Core Hits 31 | 4 19 3 5 Critical Kills . | . . . . Critical Parts Destroyed 1 | . 1 . . Critical Strikes 1 | . 1 . . Destroy 1 | . 1 . . Melee Attacks 9 | . . . 9 Impact 9 | . . . 9 Slashing . | . . . . Piercing . | . . . . Sneak Attacks . | . . . . Combat Hostiles . | . . . . Follow-up Attacks . | . . . . Damage Inflicted 892 | 71 484 156 181 Guns 793 | 71 484 156 82 Cannons . | . . . . Explosions . | . . . . Melee 99 | . . . 99 Ramming . | . . . . Kinetic 793 | 71 484 156 82 Thermal . | . . . . Explosive . | . . . . Electromagnetic . | . . . . Impact 99 | . . . 99 Slashing . | . . . . Piercing . | . . . . Highest Corruption . | . . . . Average Corruption . | . . . . Corruption Purged . | . . . . Corruption Blocked . | . . . . Overload Shots . | . . . . Overflow Damage . | . . . . Projectiles . | . . . . Explosions . | . . . . Melee . | . . . . Knockbacks 1 | . . . 1 Impact 1 | . . . 1 Kinetic . | . . . . Secondary . | . . . . Self-Inflicted Damage . | . . . . Shots . | . . . . Rammed . | . . . . Targets Rammed . | . . . . Kicked . | . . . . Crushed . | . . . . Highest Temperature 43 | . 43 . . Average Temperature 21 | . 21 . . Received Heat Transfer 339 | . 225 . 114 Siege Activations . | . . . . Martial Activations . | . . . . Shielding Activations . | . . . . Robots Disrupted . | . . . . Combat Hostiles . | . . . . Robots Corrupted . | . . . . Combat Hostiles . | . . . . Parts Fried . | . . . . Impact Corruptions . | . . . . Robots Melted . | . . . . Combat Hostiles . | . . . . Parts Melted . | . . . . Heat Transferred . | . . . . Parts Sabotaged . | . . . . Parts Stolen . | . . . . Parts Stripped . | . . . . Power Chain Reactions . | . . . . Alert | -11 -10 -10 -10 ------- Run | Yrd Mat Min Sub Maximum Alert Level . | . . . . Low Security (%) 100 | 100 100 100 . Level 1 . | . . . . Level 2 . | . . . . Level 3 . | . . . . Level 4 . | . . . . Level 5 . | . . . . High Security . | . . . . Max Security . | . . . . Peak Influence 70 | 5 50 70 . Initial 3 | . 3 . . Average 9 | 1 10 10 . Influence Increases 264 | 10 169 85 . Destroy 0b10 Robot/C 180 | . 120 60 . Destroy 0b10 Robot/NC 15 | 10 5 . . Destroy Leader 32 | . 22 10 . Successful Hack 22 | . 22 . . Lose Combat Pursuer 15 | . . 15 . Influence Decreases 262 | 5 172 85 . Time Decay 242 | 5 152 85 . Lost Part 20 | . 20 . . Squads Dispatched . | . . . . Investigation . | . . . . Extermination . | . . . . Reinforcement . | . . . . Assault . | . . . . Garrison . | . . . . Intercept . | . . . . Searches Triggered . | . . . . Construction Impeded . | . . . . Haulers Reinforced . | . . . . Active Scanning Responses . | . . . . Cargo Convoy Interrupts . | . . . . Stealth | -11 -10 -10 -10 --------- Run | Yrd Mat Min Sub Distress Signals 1 | . 1 . . Communications Jammed . | . . . . Distress Signals . | . . . . Times Spotted 18 | . 9 5 4 Peak Tracking Total 4 | . 4 3 2 Tactical Retreats 1 | . . 1 . Traps | -11 -10 -10 -10 ------- Run | Yrd Mat Min Sub Traps Triggered 2 | . 2 . . Indirectly . | . . . . Trap Hack Attempts . | . . . . Triggered . | . . . . Disarmed . | . . . . Reprogrammed . | . . . . Reused . | . . . . Traps Extracted . | . . . . Installed . | . . . . Triggered . | . . . . Machines | -11 -10 -10 -10 ---------- Run | Yrd Mat Min Sub Machines Disabled . | . . . . Max in Single Turn . | . . . . Machines Repaired . | . . . . Machines Dismantled . | . . . . Machines Sabotaged . | . . . . Overloaded Fab Kills . | . . . . Hacking | -11 -10 -10 -10 --------- Run | Yrd Mat Min Sub Machines Accessed 6 | . 6 . . Terminals 4 | . 4 . . Fabricators . | . . . . Repair Stations 1 | . 1 . . Recycling Units 1 | . 1 . . Scanalyzers . | . . . . Garrison Access . | . . . . Total Hacks 12 | . 12 . . Successful 6 | . 6 . . Failed 6 | . 6 . . Catastrophic 1 | . 1 . . Database Lockouts . | . . . . Manual 8 | . 8 . . Terminals 9 | . 9 . . Fabricators . | . . . . Repair Stations 2 | . 2 . . Recycling Units 1 | . 1 . . Scanalyzers . | . . . . Garrison Access . | . . . . Terminal Hacks 3 | . 3 . . Part Schematic 1 | . 1 . . Robot Analysis 2 | . 2 . . Fabricator Hacks . | . . . . Repair Station Hacks 2 | . 2 . . Scan Component 1 | . 1 . . Repair 1 | . 1 . . Recycling Unit Hacks 1 | . 1 . . Report Inventory 1 | . 1 . . Scanalyzer . | . . . . Garrison Access Hacks . | . . . . Unauthorized Hacks . | . . . . Terminals . | . . . . Fabricators . | . . . . Repair Stations . | . . . . Recycling Units . | . . . . Scanalyzers . | . . . . Garrison Access . | . . . . Data Cores Recovered . | . . . . Used . | . . . . Hacking Detections 4 | . 4 . . Full Trace Events . | . . . . Feedback Events . | . . . . Feedback Blocked . | . . . . Robot Schematics Acquired . | . . . . Robots Built . | . . . . Authchips . | . . . . Time . | . . . . Total Robot Build Rating . | . . . . Part Schematics Acquired 1 | . 1 . . Parts Built . | . . . . Authchips . | . . . . Time . | . . . . Total Part Build Rating . | . . . . Parts Repaired 1 | . 1 . . Time 26 | . 26 . . Parts Recycled . | . . . . Recycled Matter . | . . . . Retrieved Matter . | . . . . Retrieved Components . | . . . . Parts Scanalyzed . | . . . . Part Schematics Acquired . | . . . . Parts Damaged . | . . . . Bothacking | -11 -10 -10 -10 ------------ Run | Yrd Mat Min Sub Used RIF Installer . | . . . . Robots Hacked . | . . . . Non-combat . | . . . . Combat . | . . . . Robot Hacks Applied . | . . . . Relay Couplers Released . | . . . . Fabnet Peak Effective % . | . . . . Robots Rewired . | . . . . Allies Hacked . | . . . . Hacks Repelled . | . . . . Allies | -11 -10 -10 -10 -------- Run | Yrd Mat Min Sub Total Allies . | . . . . Largest Group . | . . . . Highest-Rated Group . | . . . . Highest-Rated Ally . | . . . . Total Orders . | . . . . Ally Attacks . | . . . . Total Damage . | . . . . Kills . | . . . . Allies Corrupted . | . . . . Allies Melted . | . . . . Intel | -11 -10 -10 -10 ------- Run | Yrd Mat Min Sub Active Infowar (turns) 375 | 8 367 . . Structural 319 | . 319 . . Seismic 56 | 8 48 . . Robot Analysis Total 2 | . 2 . . Derelict Logs Recovered 2 | . . 1 1 Drone Launches . | . . . . Drone Recoveries . | . . . . Exploration | -11 -10 -10 -10 ------------- Run | Yrd Mat Min Sub Turns Passed 1671 | 73 690 539 369 Spaces Moved 791 | 47 314 255 175 Core 4 | 4 . . . Treads 3 | . 3 . . Legs 5 | 5 . . . Wheels 779 | 38 311 255 175 Hover . | . . . . Flight . | . . . . Fastest Speed 50 | 50 80 200 150 Average Speed 176 | 81 170 200 178 Slowest Speed 480 | 120 480 200 200 Overloaded Moves . | . . . . Propulsion Burnouts . | . . . . Robots Hopped . | . . . . Cave-ins Triggered . | . . . . Exploration Rate (%) 34 | 4 60 61 13 Regions Visited 3 Branch Regions 2 Pre-discovered Areas 1 | . . . 1 Known Exits Taken . | . . . . Unknown Exits Taken 3 | 1 1 1 . Scrap Searched 1 | . . 1 . Spaces Dug . | . . . . Terrain Destroyed . | . . . . Melee . | . . . . Projectile . | . . . . AOE . | . . . . Terrain Rammed . | . . . . Walls Destroyed . | . . . . Machines Disabled . | . . . . Actions | -11 -10 -10 -10 --------- Run | Yrd Mat Min Sub Total 935 | 66 404 267 198 Wait 41 | . 40 . 1 Move 788 | 46 313 254 175 Hop . | . . . . Pick Up 15 | 5 5 4 1 Fast Attach 11 | 7 3 . 1 Attach 1 | . 1 . . Detach . | . . . . Swap 8 | 1 5 . 2 Drop 2 | . 2 . . Fire 60 | 7 35 9 9 Melee 9 | . . . 9 Ram . | . . . . Kick . | . . . . Crush . | . . . . Escape Stasis . | . . . . Rewire . | . . . . Trap . | . . . . Miscellaneous . | . . . . Route ------- -11/Scrapyard -10/Materials -10/Mines (discovered 3 exits: [*Mat x2] / [*Sub]) -10/Subcaves (discovered 1 exit: [*Scr]) History --------- Turn | Location | Event 7 | -11/Scrapyard | Discovered new exit (range 16) 74 | -11/Scrapyard | Entered Materials 308 | -10/Materials | Build established: Mutant 632 | -10/Materials | Repaired Lgt. Treads 640 | -10/Materials | Discovered new exit (range 15) 764 | -10/Materials | Entered Mines 821 | -10/Mines | Met a Derelict bent on vengeance 825 | -10/Mines | Discovered new exit (range 8) 956 | -10/Mines | Discovered new exit (range 6) 1048 | -10/Mines | Learned location of 1 exit from Materials 1114 | -10/Mines | Core integrity fell below 50% 1285 | -10/Mines | Discovered new exit (range 8) 1303 | -10/Mines | Entered Subcaves 1304 | -10/Subcaves | Approached by a straggling Scientist 1305 | -10/Subcaves | Scientist uncovered a shortcut to Scraptown 1423 | -10/Subcaves | Learned location of Zion (-6) 1423 | -10/Subcaves | Met a Zionite searching for "candidates" 1439 | -10/Subcaves | Learned Materials emergency access door positions 1490 | -10/Subcaves | Ambushed by Subdwellers from Twisted Machinery 1664 | -10/Subcaves | Core integrity fell below 20% 1672 | -10/Subcaves | Destroyed by WZ-SML(R) with Subdweller Laser Last Messages --------------- 01439_ Acquired derelict log, extracted data. Data stored: Materials emergency access points. 01490_ ZG-72U(R) emerges from the Twisted Machinery. 01505_ Ion Engine destroyed. 01505_ ZG-72U(R) destroyed. 01505_ Switching to secondary target: AM-6PP(R). 01512_ Subatomizers dissect the Sub. Power Source. 01520_ AM-6PP(R) destroyed. 01522_ Subatomizers dissect the Sub. Power Source. 01527_ Acquired 49 matter. 01535_ Acquired 9 matter. 01537_ Subatomizers dissect the Sub. Power Source. 01538_ Acquired Sub. Laser. 01539_ Acquired 1 matter. 01542_ Acquired Sub. Power Source. 01654_ Sub. Power Source destroyed. 01658_ Lgt. Treads destroyed. 01661_ RJ-PMP(R) destroyed. 01661_ Assault Rifle destroyed. 01672_ WZ-SML(R) knocked back. Map ----- +----------------------------------------------------+ | ?????????????????????????????????????????????????? | | ?????????????????????????????????????????????????? | | ?????????????????????????????????????????????????? | | ?????????????????????????????????????????????????? | | ?????????????????????????????????????????????????? | | ?????????????????????????????????????????????????? | | ?????????????????????????????????????????????????? | | ??????????????????????? ????????????????????????? | | ??????????????????????? ???????????????????????? | | ?????????????????????## ???????????????????????? | | ?????????????????????# ???????????????????????? | | ????????????????????? ???????????????????????? | | ?????????????????????? #???????????????????????? | | ?????????????????????? #???????????????????????? | | ?????????????????????? ##??????????????????????? | | ?????????????????????? #??????????????????????? | | ??????????????????????# #??????????????????????? | | ??????????????????????# #??????????????????????? | | ??????????????????????# #??????????????????????? | | ????????????????####??# ##?????????????????????? | | ????????????????# ??# ###?????????????????### | | ????????????????# ?## #???????????????## ? | | ???????????##????# ## ##?##???????????## ? | | ??????? ### #??# # R # ## #?????? ? | | ?????? ## ## #??????? ?? | | ?????? #@ #???????? ?? | | ??????? ## &[# ## #######???????? ##? | | ?????????????##### " !%&##### ##???????????# #? | | ?????????????????#" ###*!% & ############# # | | ?????????????????#"#?##"! ## # # ## | | ?????????????????##??#"" | | ?????????????????????#### ## # # # | | ?????????????????????##?### ## ## ## ##### | | ???????????????? ## #??# ## #### #???? | | ???????????????? ### ## ### #????? | | ????????????????? """""" ## ####????? | | ????????????????????#" " # #?????? | | ????????????????????## " ### ##????? | | ?????????????????????##### ###?### ## # #????? | | ?????????????????????????###?????####### #????? | | ???????????????????????????????????????## #????? | | ????????????????????????????????????????# #????? | | ????????????????????????????????????????## #????? | | ?????????????????????????????????????????# ##???? | | ????# ?????????????????????????????????# # ##??? | | ??## ?????????????????????????????????## ## ##?? | | ? ??????????????????????????????????##### #?? | | ???????????????????????????????????# # #?? | | #???????????????????????????????????# # ##?? | | #???????????????????????????????????## ##??? | +----------------------------------------------------+ Best States ------------- Heat Dissipation 25 Energy Generation 10 Energy Capacity 250 Matter Stores 300 Matter Capacity 300 Sight Range 16 Terrain Scan Density 10 Core Shielding 20 Evasion (%) 45 Recoil Reduction 1 Item Schematics ----------------- Hcp. Storage Unit | -10/Materials | Hacked Robot Schematics ------------------ None Fabricated ------------ Nothing Repaired ---------- Lgt. Treads | 69% | -10/Materials Alien Tech Used ----------------- None Achievements -------------- None Challenges ------------ None Game ------ Seed GuidancePotentialWartreads Manual? 0 Play Time 00:09:34 Cumulative 550.2 hours Start 2024.11.14 @ 19:08:15 End 2024.11.14 @ 19:16:51 Sessions 1 Manual Loads 0 Difficulty Rogue Special Mode None Game No. 209 Rogue 204 Adventurer 4 Explorer 1 Win Type - Total 7 Types 4/1/0/1/0/1/0/0/0 Lore% 89 Gallery% 92 Achievement% 87 Wizard Run 0 Options --------- Layout 0 ASCII 0 Keyboard 0 Movement Numpad Keybinds 0 Fullscreen 2 Font 18/CogNarrow Map View 76x50 Zoom Use 0% Tactical HUD 1 Map Filters NONE Filters NONE Steam 1 RUN: 82880bed-a85b-41fd-a613-d67e8f07c349